{"text_format":"1","workbook":"xlsx","n_sheets":3,"sheets":["ادراج البيانات","جميع البيانات","اساس"],"not_rendered":{"charts":0,"images":0,"macros":1,"external_links":0,"defined_names":5,"comments":0,"pivot_tables":0},"unopened":[],"bounds":{"document_bytes":16777216,"sheet_cells":100000,"rows_first":2000,"rows_last":500,"rows_between":2000,"halvings":0,"cell_chars":16384,"cell_head_chars":4096},"cells_cut":0,"cells_raw":0,"read":"whole","date_system":"1900"}

{"sheet":"ادراج البيانات","index":0,"n_rows":8,"n_cols":3,"rows_kept":8,"cut":false,"hidden":false,"merged":[]}
[]
[null,"مصروف / ايراد","المصروفات"]
[null,"تصنيف المصروف /الايراد","فواتير كهرباء"]
[null,"رقم الشقة"]
[null,"مالك الشقة",{"$f":"IFERROR(VLOOKUP(C4,اساس!$I$2:$J$51,2,0),\"\")","v":""}]
[null,"التاريخ","2021-01-01"]
[null,"المبلغ",9000]
[null,"بيان ","فاتورة الكهرباء عن شهر ديسمبر 2020"]

{"sheet":"جميع البيانات","index":1,"n_rows":1,"n_cols":8,"rows_kept":1,"cut":false,"hidden":false,"merged":[]}
["رقم مسلسل","مصروف / ايراد","تصنيف المصروف /الايراد","رقم الشقة","مالك الشقة","التاريخ","المبلغ","بيان "]

{"sheet":"اساس","index":2,"n_rows":51,"n_cols":11,"rows_kept":51,"cut":false,"hidden":false,"merged":[]}
[null,null,"مصروف / ايراد",null,null,"تصنيف المصروفات / الايرادات",null,null,"رقم الشقة","مالك الشقة"]
[null,null,"المصروفات",null,null,"دفعة من الساكن",null,null,1,"شعبان",{"$f":"I2","v":1}]
[null,null,"الايرادات",null,null,"فواتير كهرباء",null,null,2,"محمود",{"$f":"I3","v":2}]
[null,null,null,null,null,"فواتير مياه",null,null,3,"خالد",3]
[null,null,null,null,null,"راتب الحارس",null,null,4,"عزيز",4]
[null,null,null,null,null,"صيانة مصعد",null,null,5,"سلطان",5]
[null,null,null,null,null,"صرف صحي",null,null,6,"سعيد",6]
[null,null,null,null,null,"نظافة سلم",null,null,7,"مصطفى",7]
[null,null,null,null,null,"أدوات صيانة",null,null,8,"عادل",8]
[null,null,null,null,null,"أدوات نظافة",null,null,9,"عبدالله",9]
[null,null,null,null,null,"أجرة قمامة",null,null,10,"ياسر",10]
[null,null,null,null,null,"نثريات",null,null,11,"سمير",11]
[null,null,null,null,null,null,null,null,12,"سيد",12]
[null,null,null,null,null,null,null,null,13,"عمر",13]
[null,null,null,null,null,null,null,null,14,"محمد",14]
[null,null,null,null,null,null,null,null,15,"فؤاد",15]
[null,null,null,null,null,null,null,null,16,"رمضان",16]
[null,null,null,null,null,null,null,null,17,"اسامة",17]
[null,null,null,null,null,null,null,null,18,"اشرف",18]
[null,null,null,null,null,null,null,null,null,null,0]
[null,null,null,null,null,null,null,null,null,null,0]
[null,null,null,null,null,null,null,null,null,null,0]
[null,null,null,null,null,null,null,null,null,null,0]
[null,null,null,null,null,null,null,null,null,null,0]
[null,null,null,null,null,null,null,null,null,null,0]
[null,null,null,null,null,null,null,null,null,null,0]
[null,null,null,null,null,null,null,null,null,null,0]
[null,null,null,null,null,null,null,null,null,null,0]
[null,null,null,null,null,null,null,null,null,null,0]
[null,null,null,null,null,null,null,null,null,null,0]
[null,null,null,null,null,null,null,null,null,null,0]
[null,null,null,null,null,null,null,null,null,null,0]
[null,null,null,null,null,null,null,null,null,null,0]
[null,null,null,null,null,null,null,null,null,null,0]
[null,null,null,null,null,null,null,null,null,null,0]
[null,null,null,null,null,null,null,null,null,null,0]
[null,null,null,null,null,null,null,null,null,null,0]
[null,null,null,null,null,null,null,null,null,null,0]
[null,null,null,null,null,null,null,null,null,null,0]
[null,null,null,null,null,null,null,null,null,null,0]
[null,null,null,null,null,null,null,null,null,null,0]
[null,null,null,null,null,null,null,null,null,null,0]
[null,null,null,null,null,null,null,null,null,null,0]
[null,null,null,null,null,null,null,null,null,null,0]
[null,null,null,null,null,null,null,null,null,null,0]
[null,null,null,null,null,null,null,null,null,null,0]
[null,null,null,null,null,null,null,null,null,null,0]
[null,null,null,null,null,null,null,null,null,null,0]
[null,null,null,null,null,null,null,null,null,null,0]
[null,null,null,null,null,null,null,null,null,null,0]
[null,null,null,null,null,null,null,null,null,null,0]